fUSD/lending_fUSD_20241017
["ID","MTS","AMOUNT","RATE_DAILY","PERIOD"]
[340399852,1729191046693,-210.18844971,0.00022618,4]
[340399853,1729191046703,-150.0,0.00022629,4]
[340399854,1729191046714,-150.0,0.00022629,4]
[340399855,1729191046723,-456.12484299,0.00022642,4]
[340399857,1729191046732,-210.18844971,0.00022642,4]
[340399859,1729191046741,-150.0,0.00022656,4]
[340399861,1729191046750,-456.12484299,0.00022667,4]
[340399862,1729191046759,-210.18844971,0.00022667,4]
[340399863,1729191046768,-150.0,0.00022667,4]
[340399864,1729191046778,-456.12484299,0.00022691,4]
[340399865,1729191046787,-210.18844971,0.00022691,4]
[340399866,1729191046796,-150.0,0.00022697,4]
[340399867,1729191046806,-150.0,0.00022708,4]
[340399868,1729191046817,-150.0,0.00022714,4]
[340399869,1729191046826,-456.12484299,0.00022715,4]
[340399870,1729191046835,-210.18844971,0.00022715,4]
[340399871,1729191046844,-303.6,0.0002272,2]
[340399872,1729191046854,-456.12484299,0.00022739,4]
[340399873,1729191046863,-210.18844971,0.00022739,4]
[340399874,1729191046873,-150.0,0.0002274,2]
[340399875,1729191046882,-426.0,0.0002274,2]
[340399876,1729191046891,-150.0,0.0002274,2]
[340399877,1729191046901,-500.0,0.0002274,2]
[340399878,1729191046910,-176.973685,0.00022745,7]
[340399879,1729191046919,-176.973685,0.00022745,7]
[340399880,1729191046929,-996.56,0.0002275,2]
[340399881,1729191046938,-150.0,0.00022752,4]
[340399882,1729191046948,-456.12484299,0.00022764,4]
[340399883,1729191046959,-210.18844971,0.00022764,4]
[340399884,1729191046969,-150.0,0.00022766,4]
[340399885,1729191046978,-204.44166899,0.00022773,2]
[340399886,1729191046987,-456.12484299,0.00022788,4]
[340399887,1729191046996,-210.18844971,0.00022788,4]
[340399888,1729191047006,-150.0,0.000228,4]
[340399889,1729191047015,-150.0,0.000228,4]
[340399890,1729191047024,-456.12484299,0.00022812,4]
[340399891,1729191047033,-210.18844971,0.00022812,4]
[340399892,1729191047043,-150.0,0.00022834,4]
[340399893,1729191047053,-456.12484299,0.00022836,4]
[340399894,1729191047062,-210.18844971,0.00022836,4]
[340399895,1729191047071,-150.0,0.00022848,4]
[340399896,1729191047081,-456.12484299,0.00022861,4]
[340399897,1729191047090,-210.18844971,0.00022861,4]
[340399898,1729191047099,-500.0,0.00022869,7]
[340399900,1729191047108,-456.12484299,0.00022885,4]
[340399901,1729191047117,-210.18844971,0.00022885,4]
[340399902,1729191047127,-959.03689738,0.00022886,2]
[340399903,1729191047136,-150.0,0.00022886,4]
[340399904,1729191047145,-150.0,0.00022892,4]
[340399905,1729191047154,-150.0,0.00022903,4]
[340399906,1729191047163,-456.12484299,0.00022909,4]
[340399907,1729191047172,-210.18844971,0.00022909,4]
[340399908,1729191047181,-150.0,0.00022927,2]
[340399909,1729191047192,-456.12484299,0.00022933,4]
[340399910,1729191047201,-210.18844971,0.00022933,4]
[340399911,1729191047211,-150.0,0.00022933,4]
[340399912,1729191047221,-150.0,0.00022944,4]
[340399913,1729191047230,-456.12484299,0.00022958,4]
[340399914,1729191047239,-210.18844971,0.00022958,4]
[340399915,1729191047249,-150.0,0.00022971,4]
[340399916,1729191047258,-150.0,0.00022971,4]
[340399917,1729191047267,-456.12484299,0.00022982,4]
[340399918,1729191047276,-210.18844971,0.00022982,4]
[340399919,1729191047286,-150.0,0.00022985,4]
[340399920,1729191047295,-1800.0,0.00023,24]
[340399921,1729191047304,-320.0,0.00023,10]
[340399922,1729191047313,-150.0,0.00023,10]
[340399923,1729191047323,-150.0,0.00023,2]
[340399924,1729191047332,-150.0,0.00023,30]
[340399925,1729191047342,-2110.0,0.00023,2]
[340399926,1729191047351,-303.6,0.00023,2]
[340399927,1729191047360,-996.56,0.00023,2]
[340399928,1729191047369,-150.0,0.00023,2]
[340399929,1729191047378,-174.0,0.00023,2]
[340399930,1729191047387,-200.0,0.00023,2]
[340399931,1729191047397,-456.12484299,0.00023006,4]
[340399932,1729191047406,-210.18844971,0.00023006,4]
[340399933,1729191047415,-265.34452107,0.0002301,2]
[340399934,1729191047424,-456.12484299,0.0002303,4]
[340399935,1729191047434,-210.18844971,0.0002303,4]
[340399936,1729191047443,-150.0,0.0002304,4]
[340399937,1729191047452,-150.0,0.0002304,4]
[340399938,1729191047462,-456.12484299,0.00023055,4]
[340399939,1729191047471,-210.18844971,0.00023055,4]
[340399940,1729191047480,-150.0,0.00023057,4]
[340399941,1729191047490,-150.0,0.00023077,4]
[340399942,1729191047499,-456.12484299,0.00023079,4]
[340399943,1729191047508,-210.18844971,0.00023079,4]
[340399944,1729191047518,-150.0,0.000231,11]
[340399945,1729191047527,-456.12484299,0.00023103,4]
[340399946,1729191047536,-210.18844971,0.00023103,4]
[340399947,1729191047545,-150.0,0.00023109,4]
[340399948,1729191047555,-456.12484299,0.00023127,4]
[340399949,1729191047564,-210.18844971,0.00023127,4]
[340399950,1729191047574,-150.0,0.00023136,4]
[340399951,1729191047583,-514.29,0.00023142,7]
[340399952,1729191047593,-150.0,0.00023143,4]
[340399953,1729191047602,-456.12484299,0.00023152,4]
[340399954,1729191047611,-210.18844971,0.00023152,4]
[340399955,1729191047621,-150.0,0.00023169,4]
[340399956,1729191047631,-456.12484299,0.00023176,4]
[340399957,1729191047641,-210.18844971,0.00023176,4]
[340399958,1729191047651,-150.0,0.00023177,4]
[340399959,1729191047660,-456.12484299,0.000232,4]
[340399960,1729191047670,-210.18844971,0.000232,4]
[340399961,1729191047679,-150.0,0.000232,4]
[340399962,1729191047688,-150.0,0.000232,4]
[340399963,1729191047699,-563.30714813,0.0002322,2]
[340399964,1729191047710,-456.12484299,0.00023224,4]
[340399965,1729191047721,-210.18844971,0.00023224,4]
[340399966,1729191047730,-150.0,0.00023229,4]
[340399967,1729191047740,-150.0,0.00023232,4]
[340399968,1729191047751,-150.0,0.00023246,4]
[340399969,1729191047761,-456.12484299,0.00023248,4]
[340399970,1729191047772,-210.18844971,0.00023248,4]
[340399971,1729191047781,-150.0,0.00023262,4]
[340399972,1729191047792,-456.12484299,0.00023273,4]
[340399973,1729191047804,-210.18844971,0.00023273,4]
[340399974,1729191047818,-456.12484299,0.00023297,4]
[340399975,1729191047827,-210.18844971,0.00023297,4]
[340399976,1729191047836,-250.0,0.000233,2]
[340399977,1729191047846,-555.0,0.000233,2]
[340399978,1729191047855,-1500.0,0.000233,2]
[340399979,1729191047864,-182.0,0.000233,2]
[340399980,1729191047873,-3461.0,0.000233,2]
[340399981,1729191047883,-150.0,0.00023314,4]
[340399982,1729191047892,-150.0,0.00023314,4]
[340399983,1729191047901,-456.12484299,0.00023321,4]
[340399984,1729191047911,-210.18844971,0.00023321,4]
[340399985,1729191047920,-150.0,0.00023328,4]
[340399986,1729191047929,-312.0,0.0002333,10]
[340399987,1729191047938,-6871.71229075,0.00023332,2]
[340399988,1729191047948,-456.12484299,0.00023345,4]
[340399989,1729191047958,-210.18844971,0.00023345,4]
[340399990,1729191047967,-381.55,0.00023347,2]
[340399991,1729191047977,-281.07,0.00023347,2]
[340399992,1729191047988,-150.0,0.00023354,4]
[340399993,1729191047998,-150.0,0.0002336,2]
[340399994,1729191048007,-456.12484299,0.0002337,4]
[340399995,1729191048017,-210.18844971,0.0002337,4]
[340399996,1729191048027,-150.0,0.00023383,4]
[340399997,1729191048037,-456.12484299,0.00023394,4]
[340399998,1729191048046,-210.18844971,0.00023394,4]
[340399999,1729191048056,-150.0,0.000234,4]
[340400000,1729191048066,-456.12484299,0.00023418,4]
[340400001,1729191048075,-210.18844971,0.00023418,4]
[340400002,1729191048085,-150.0,0.00023424,4]
[340400003,1729191048094,-456.12484299,0.00023442,4]
[340400004,1729191048103,-210.18844971,0.00023442,4]
[340400005,1729191048112,-150.0,0.00023446,4]
[340400006,1729191048122,-150.0,0.00023451,4]
[340400007,1729191048132,-1000.0,0.00023452,2]
[340400008,1729191048141,-500.0,0.00023452,2]
[340400009,1729191048151,-456.12484299,0.00023467,4]
[340400010,1729191048160,-210.18844971,0.00023467,4]
[340400011,1729191048170,-150.0,0.00023467,4]
[340400012,1729191048180,-150.0,0.00023486,4]
[340400013,1729191048190,-456.12484299,0.00023491,4]
[340400014,1729191048200,-210.18844971,0.00023491,4]
[340400015,1729191048210,-2110.0,0.000235,2]
[340400016,1729191048219,-456.12484299,0.00023515,4]
[340400017,1729191048229,-210.18844971,0.00023515,4]
[340400018,1729191048239,-150.0,0.0002352,4]
[340400019,1729191048248,-150.0,0.0002352,4]
[340400020,1729191048258,-150.0,0.00023538,4]
[340400021,1729191048267,-456.12484299,0.00023539,4]
[340400022,1729191048277,-210.18844971,0.00023539,4]
[340400023,1729191048286,-456.12484299,0.00023564,4]
[340400024,1729191048295,-210.18844971,0.00023564,4]
[340400025,1729191048305,-150.0,0.00023571,4]
[340400026,1729191048315,-456.12484299,0.00023588,4]
[340400027,1729191048323,-210.18844971,0.00023588,4]
[340400028,1729191048332,-150.0,0.00023589,4]
[340400029,1729191048342,-150.0,0.000236,11]
[340400030,1729191048352,-456.12484299,0.00023612,4]
[340400031,1729191048361,-210.18844971,0.00023612,4]
[340400032,1729191048371,-150.0,0.00023616,4]
[340400033,1729191048380,-150.0,0.00023631,4]
[340400034,1729191048389,-456.12484299,0.00023636,4]
[340400035,1729191048399,-210.18844971,0.00023636,4]
[340400036,1729191048408,-150.0,0.00023657,4]
[340400037,1729191048417,-150.0,0.00023657,4]
[340400038,1729191048427,-456.12484299,0.00023661,4]
[340400039,1729191048436,-210.18844971,0.00023661,4]
[340400040,1729191048446,-456.12484299,0.00023685,4]
[340400041,1729191048457,-210.18844971,0.00023685,4]
[340400042,1729191048466,-456.12484299,0.00023709,4]
[340400043,1729191048476,-210.18844971,0.00023709,4]
[340400044,1729191048485,-150.0,0.00023712,4]
[340400045,1729191048495,-150.0,0.00023723,4]
[340400046,1729191048504,-150.0,0.00023726,4]
[340400047,1729191048514,-456.12484299,0.00023733,4]
[340400048,1729191048524,-210.18844971,0.00023733,4]
[340400049,1729191048533,-150.0,0.00023733,4]
[340400050,1729191048543,-150.0,0.00023743,4]
[340400051,1729191048552,-456.12484299,0.00023758,4]
[340400052,1729191048562,-210.18844971,0.00023758,4]
[340400053,1729191048571,-500.0,0.0002376,30]
[340400054,1729191048581,-456.12484299,0.00023782,4]
[340400055,1729191048591,-210.18844971,0.00023782,4]
[340400056,1729191048600,-150.0,0.00023792,2]
[340400057,1729191048610,-150.0,0.00023794,4]
[340400058,1729191048620,-456.12484299,0.00023806,4]
[340400059,1729191048630,-210.18844971,0.00023806,4]
[340400060,1729191048639,-150.0,0.00023808,4]
[340400061,1729191048649,-150.0,0.00023815,4]
[340400062,1729191048659,-150.0,0.00023829,4]
[340400063,1729191048669,-456.12484299,0.0002383,4]
[340400064,1729191048678,-210.18844971,0.0002383,4]
[340400065,1729191048687,-456.12484299,0.00023855,4]
[340400066,1729191048696,-210.18844971,0.00023855,4]
[340400067,1729191048706,-150.0,0.00023863,4]
[340400068,1729191048716,-456.12484299,0.00023879,4]
[340400069,1729191048726,-210.18844971,0.00023879,4]
[340400070,1729191048736,-456.12484299,0.00023903,4]
[340400071,1729191048746,-210.18844971,0.00023903,4]
[340400072,1729191048756,-150.0,0.00023904,4]
[340400073,1729191048766,-150.0,0.00023908,4]
[340400074,1729191048775,-150.0,0.00023914,4]
[340400075,1729191048784,-456.12484299,0.00023927,4]
[340400076,1729191048794,-210.18844971,0.00023927,4]
[340400077,1729191048803,-150.0,0.00023931,4]
[340400078,1729191048816,-456.12484299,0.00023952,4]
[340400079,1729191048825,-210.18844971,0.00023952,4]
[340400080,1729191048834,-456.12484299,0.00023976,4]
[340400081,1729191048843,-210.18844971,0.00023976,4]
[340400082,1729191048853,-400.0,0.00023999,2]
[340400083,1729191048862,-400.0,0.00023999,2]
[340400084,1729191048871,-400.0,0.00023999,2]
[340400085,1729191048880,-400.0,0.00023999,2]
[340400086,1729191048889,-30000.0,0.00024,2]
[340400087,1729191048898,-1800.0,0.00024,25]
[340400088,1729191048907,-6627.58406576,0.00024,2]
[340400089,1729191048917,-968.35732978,0.00024,2]
[340400090,1729191048926,-839.32473261,0.00024,30]
[340400091,1729191048935,-57947.25766754,0.00024,2]
[340400092,1729191049305,-12052.74233246,0.00024,2]
[340400093,1729191049315,-300.0,0.00024,14]
[340400094,1729191049324,-407.4,0.00024,14]
[340400095,1729191049333,-2622.37504555,0.00024,30]
[340400096,1729191049344,-4172.15155273,0.00024,30]
[340400097,1729191049353,-250.000009,0.00024,4]
[340400098,1729191049362,-1535.90870637,0.00024,2]
[340400099,1729191049374,-574.09129363,0.00024,2]
[340400100,1729191049383,-150.81147144,0.00024,30]
[340400101,1729191049392,-703.01949,0.00024,2]
[340400102,1729191049401,-176.973685,0.00024,7]
[340400103,1729191049410,-176.973685,0.00024,7]
[340400104,1729191049419,-456.12484299,0.00024,4]
[340400105,1729191049428,-176.2943632,0.00024,4]
[340400106,1729191049438,-900.0,0.00024,2]
[340400107,1729191049446,-210.18844971,0.00024,4]
[340400108,1729191049456,-233.22613909,0.00024,4]
[340400109,1729191049466,-199.98855677,0.00024,4]
[340400110,1729191049475,-231.41151415,0.00024,4]
[340400111,1729191049484,-169.30316017,0.00024,4]
[340400112,1729191049494,-159.07906966,0.00024,4]
[340400113,1729191049503,-218.0575956,0.00024,4]
[340400114,1729191049512,-359.8003,0.00024,2]
[340400115,1729191049521,-150.0,0.00024,2]
[340400116,1729191049531,-400.0,0.00024018,2]
[340400117,1729191049540,-400.0,0.00024018,2]
[340400118,1729191049549,-400.0,0.00024018,2]
[340400119,1729191049559,-400.0,0.00024018,2]
[340400120,1729191049568,-8500.0,0.00024023,2]
[340400121,1729191049577,-400.0,0.00024029,2]
[340400122,1729191049587,-400.0,0.00024029,2]
[340400123,1729191049596,-400.0,0.00024029,2]
[340400124,1729191049605,-536.95673961,0.00024029,2]
[340400125,1729191049614,-176.973685,0.00024031,7]
[340400126,1729191049624,-176.973685,0.00024031,7]
[340400127,1729191049633,-8500.0,0.00024031,2]
[340400128,1729191049642,-422.9,0.00024035,2]
[340400129,1729191049652,-8500.0,0.00024071,2]
[340400130,1729191049661,-8500.0,0.00024071,2]
[340400131,1729191049670,-400.0,0.00024079,2]
[340400132,1729191049679,-400.0,0.00024079,2]
[340400133,1729191049688,-400.0,0.00024079,2]
[340400134,1729191049697,-4068.59510842,0.0002408,2]
[340400135,1729191049706,-8500.0,0.0002408,2]
[340400136,1729191049715,-8500.0,0.0002408,2]
[340400137,1729191049724,-8500.0,0.0002408,2]
[340400138,1729191049733,-343.2,0.0002408,2]
[340400139,1729191049743,-7488.62607266,0.00024094,2]
[340400140,1729191049755,-1011.37392734,0.00024094,2]
[340400141,1729191049764,-3292.97999725,0.000241,2]
[340400142,1729191049776,-31707.02000275,0.000241,2]
[340400143,1729191049785,-296.385885,0.000241,12]
[340400144,1729191049795,-8500.0,0.000241,2]
[340400145,1729191049805,-8500.0,0.00024103,2]
[340400146,1729191049818,-17374.97376437,0.00024103,2]
[340400147,1729191049922,-300.0,0.00023268,2]
[340400148,1729191049931,-147.4407266,0.00024103,2]
[340400149,1729191049962,-1960.951636,0.00024103,2]
[340400150,1729191050271,-15516.63387303,0.00024103,2]
[340400151,1729191050280,-173.82,0.0002411,2]
[340400152,1729191050291,-150.95841547,0.0002411,2]
[340400153,1729191050303,-500.0,0.0002411,2]
[340400154,1729191050313,-100.2396964,0.00024116,30]
[340400155,1729191089695,2189.1661,0.000104,2]
[340400157,1729191196859,500.0,0.00025,120]
[340400795,1729192048107,-327.145,0.00010736,2]
[340400796,1729192048138,-150.0,0.00010736,2]
[340400797,1729192048160,-500.0,0.00010736,2]
[340400798,1729192048181,-500.0,0.00010736,2]
[340400799,1729192048204,-300.0,0.00010788,2]
[340400800,1729192048225,-150.0,0.00010789,2]
[340400801,1729192048249,-4482.80116031,0.00010789,2]
[340400814,1729192231493,-283.93839945,0.00010689,2]
[340400815,1729192231557,-706.71271681,0.00010689,2]
[340400816,1729192231568,-5612.41880477,0.00010689,2]
[340400817,1729192231577,-150.0,0.00010789,2]
[340400818,1729192231586,-300.0,0.00010789,2]
[340400819,1729192231596,-262.4105,0.0001079,2]
[340400820,1729192231605,-4028.37069523,0.0001079,2]
[340400821,1729192231624,-2599.99999999,0.0001079,2]
[340400822,1729192231635,-322.26793109,0.0001079,2]
[340400823,1729192231874,-272.47,0.0001079,2]
[340400824,1729192231886,-354.88,0.0001079,2]
[340400829,1729192237566,-449.59669731,0.0001079,2]
[340400830,1729192237578,-2564.7511365,0.0001079,2]
[340400831,1729192237588,-504.46416423,0.0001079,2]
[340400832,1729192237610,-1879.79073718,0.0001079,2]
[340400833,1729192237621,-13257.40208425,0.0001079,2]
[340400834,1729192237632,-435.33770526,0.0001079,2]
[340400835,1729192237644,-845.57482597,0.0001079,2]
[340400836,1729192237704,-3038.02591915,0.0001079,2]
[340400837,1729192237715,-7442.804616,0.0001079,2]
[340400838,1729192237726,-2137.23909504,0.0001079,2]
[340400839,1729192237738,-720.62291816,0.0001079,2]
[340400840,1729192237749,-465.67672514,0.0001079,2]
[340400841,1729192237762,-3783.4945495,0.0001079,2]
[340400842,1729192237771,-1000.0,0.0001079,2]
[340400843,1729192237781,-6115.14255046,0.0001079,2]
[340400844,1729192237796,-1048.11901464,0.0001079,2]
[340400845,1729192237807,-728.78495617,0.0001079,2]
[340400846,1729192237819,-15597.8082143,0.0001079,2]
[340400847,1729192237830,-585.41820824,0.0001079,2]
[340400848,1729192237842,-2500.14790047,0.0001079,2]
[340400849,1729192237853,-590.62314607,0.0001079,2]
[340400850,1729192237993,-3637.51840965,0.0001079,2]
[340400851,1729192238002,-214.886,0.000108,2]
[340400852,1729192238012,-151.99,0.00010959,2]
[340400853,1729192238023,-318.31,0.000147,2]
[340400854,1729192238032,-499.99,0.00015746,2]
[340400855,1729192238042,-173.82,0.00016438,2]
[340400856,1729192238053,-370.52,0.00017487,2]
[340400857,1729192238062,-14217.14172913,0.00018438,2]
[340400858,1729192238073,-1220.78618031,0.00018438,2]
[340400859,1729192238084,-3534.44466044,0.00018438,2]
[340400860,1729192238096,-2289.53902093,0.00018438,2]
[340400861,1729192238108,-726.22550044,0.00018438,2]
[340400862,1729192238119,-1911.86290875,0.00018438,2]
[340400863,1729192238129,-250.0,0.00018601,2]
[340400864,1729192238139,-250.0,0.00018628,2]
[340400865,1729192238149,-150.0,0.00019061,2]
[340400866,1729192238158,-1000.0,0.00019184,2]
[340400867,1729192238375,-700.0,0.00019184,2]
[340400868,1729192238384,-500.0,0.00019184,2]
[340400869,1729192238393,-500.0,0.00019184,2]
[340400870,1729192238402,-500.0,0.00019184,2]
[340400871,1729192238411,-250.0,0.00019186,2]
[340400872,1729192238420,-188.14,0.00019401,2]
[340400873,1729192238430,-705.31,0.00019449,2]
[340400874,1729192238439,-954.95,0.000195,7]
[340400875,1729192238448,-200.0,0.00019568,2]
[340400876,1729192238457,-420.89098607,0.00019699,2]
[340400877,1729192238466,-472.0497,0.000197,2]
[340400878,1729192238475,-216.69138456,0.000197,2]
[340400879,1729192238485,-2500.0,0.000197,2]
[340400880,1729192238494,-370.52,0.00019751,2]
[340400881,1729192238503,-12558.26072231,0.000198,5]
[340400882,1729192238514,-570.23685725,0.000198,5]
[340400883,1729192238525,-23333.39692139,0.000198,5]
[340400884,1729192238538,-974.16207443,0.000198,5]
[340400885,1729192238549,-399.08923112,0.000198,5]
[340400886,1729192238559,-620.27204007,0.000198,5]
[340400887,1729192238570,-394.12782113,0.000198,5]
[340400888,1729192238581,-11259.95901232,0.000198,5]
[340400889,1729192238592,-5403.3429348,0.000198,5]
[340400896,1729192239673,-258.93499999,0.000198,5]
[340400909,1729192245787,-12339.01738519,0.000198,5]
[340400910,1729192245797,-420.89098607,0.00019824,2]
[340400911,1729192245806,-687.17122912,0.000199,2]
[340400912,1729192245815,-1000.0,0.000199,2]
[340400913,1729192245824,-16.40474867,0.0002,2]
[340400914,1729192245835,-273.18016177,0.0002,2]
[340400915,1729192245847,-310.41508956,0.0002,2]
[340400916,1729192245856,-600.0,0.0002,2]
[340400917,1729192245865,-600.0,0.0002,2]
[340400918,1729192245874,-600.0,0.0002,2]
[340400919,1729192245883,-600.0,0.0002,2]
[340400920,1729192245892,-600.0,0.0002,2]
[340400921,1729192245901,-600.0,0.0002,2]
[340400922,1729192245911,-600.0,0.0002,2]
[340400923,1729192245920,-600.0,0.0002,2]
[340400924,1729192245929,-600.0,0.0002,2]
[340400925,1729192245938,-150.0,0.0002,2]
[340400926,1729192245947,-1002.84,0.0002,2]
[340400927,1729192245956,-2884.21957964,0.0002,7]
[340400928,1729192245965,-7303.93235045,0.0002,2]
[340400929,1729192245974,-420.89098607,0.00020176,2]
[340400930,1729192245983,-700.0,0.0002028,2]
[340400931,1729192245994,-500.0,0.0002028,2]
[340400932,1729192246004,-420.89098607,0.00020427,2]
[340400933,1729192246013,-687.17122907,0.00020456,2]
[340400934,1729192246022,-420.89098607,0.00020652,2]
[340400935,1729192246031,-11517.0,0.000207,5]
[340400936,1729192246040,-1002.84,0.00020895,2]
[340400937,1729192246049,-687.17122907,0.00021011,2]
[340400938,1729192246059,-420.89098607,0.00021058,2]
[340400939,1729192246068,-420.89098607,0.00021179,2]
[340400940,1729192246077,-700.0,0.00021376,2]
[340400941,1729192246086,-500.0,0.00021376,2]
[340400942,1729192246095,-500.0,0.00021376,2]
[340400943,1729192246104,-500.0,0.00021376,2]
[340400944,1729192246113,-420.89098607,0.00021487,2]
[340400945,1729192246122,-687.17122907,0.00021567,2]
[340400946,1729192246131,-1000.0,0.00021582,2]
[340400947,1729192246141,-14157.14812742,0.00021602,4]
[340400948,1729192246152,-7247.41405788,0.00021602,4]
[340400949,1729192246162,-500.0,0.00021612,2]
[340400950,1729192246171,-500.0,0.00021612,2]
[340400951,1729192246181,-500.0,0.00021612,2]
[340400952,1729192246191,-500.0,0.00021612,2]
[340400953,1729192246200,-500.0,0.00021612,2]
[340400954,1729192246209,-500.0,0.00021612,2]
[340400955,1729192246218,-74.16409737,0.00021612,2]
[340400956,1729192246230,-425.83590263,0.00021612,2]
[340400957,1729192246239,-500.0,0.00021612,2]
[340400958,1729192246251,-500.0,0.00021612,2]
[340400959,1729192246263,-500.0,0.00021612,2]
[340400960,1729192246272,-500.0,0.00021612,2]
[340400961,1729192246281,-500.0,0.00021612,2]
[340400962,1729192246290,-500.0,0.00021612,2]
[340400963,1729192246300,-500.0,0.00021612,2]
[340400964,1729192246309,-500.0,0.00021612,2]
[340400965,1729192246318,-500.0,0.00021612,2]
[340400966,1729192246327,-500.0,0.00021612,2]
[340400967,1729192246336,-500.0,0.00021612,2]
[340400968,1729192246346,-212.59989737,0.00021612,2]
[340400969,1729192246358,-287.40010263,0.00021612,2]
[340400970,1729192246367,-500.0,0.00021612,2]
[340400971,1729192246376,-500.0,0.00021612,2]
[340400972,1729192246386,-500.0,0.00021612,2]
[340400973,1729192246395,-500.0,0.00021612,2]
[340400974,1729192246404,-500.0,0.00021612,2]
[340400975,1729192246412,-500.0,0.00021612,2]
[340400976,1729192246422,-500.0,0.00021612,2]
[340400977,1729192246431,-500.0,0.00021612,2]
[340400978,1729192246440,-500.0,0.00021612,2]
[340400979,1729192246450,-500.0,0.00021612,2]
[340400980,1729192246459,-500.0,0.00021612,2]
[340400981,1729192246468,-11.31098599,0.00021612,2]
[340400982,1729192246494,-488.68901401,0.00021612,2]
[340400983,1729192246507,-500.0,0.00021612,2]
[340400984,1729192246516,-500.0,0.00021612,2]
[340400985,1729192246526,-500.0,0.00021612,2]
[340400986,1729192246536,-500.0,0.00021612,2]
[340400987,1729192246545,-500.0,0.00021612,2]
[340400988,1729192246554,-500.0,0.00021612,2]
[340400989,1729192246564,-500.0,0.00021612,2]
[340400990,1729192246573,-500.0,0.00021612,2]
[340400991,1729192246582,-500.0,0.00021612,2]
[340400992,1729192246591,-500.0,0.00021612,2]
[340400993,1729192246600,-500.0,0.00021612,2]
[340400994,1729192246609,-145.760986,0.00021612,2]
[340400995,1729192246621,-354.239014,0.00021612,2]
[340400996,1729192246630,-500.0,0.00021612,2]
[340400997,1729192246639,-95.410986,0.00021612,2]
[340400998,1729192246658,-404.589014,0.00021612,2]
[340400999,1729192246667,-500.0,0.00021612,2]
[340401000,1729192246677,-114.19372085,0.00021612,2]
[340401001,1729192246689,-385.80627915,0.00021612,2]
[340401002,1729192246698,-131.09372085,0.00021612,2]
[340401003,1729192246709,-368.90627915,0.00021612,2]
[340401004,1729192246719,-500.0,0.00021612,2]
[340401005,1729192246728,-500.0,0.00021612,2]
[340401006,1729192246738,-500.0,0.00021612,2]
[340401007,1729192246749,-500.0,0.00021612,2]
[340401008,1729192246758,-500.0,0.00021612,2]
[340401009,1729192246768,-500.0,0.00021612,2]
[340401010,1729192246777,-500.0,0.00021612,2]
[340401011,1729192246786,-500.0,0.00021612,2]
[340401012,1729192246796,-13.27819269,0.00021612,2]
[340401013,1729192246807,-263.86078829,0.00021612,2]
[340401018,1729192578158,550.0,0.0001,2]
[340401042,1729193225142,-1293.4685,0.000109,2]
[340401043,1729193225164,-161.29,0.00010959,2]
[340401044,1729193225186,-154.25,0.00010959,2]
[340401045,1729193225209,-300.0,0.00010999,2]
[340401046,1729193225229,-150.0,0.00010999,2]
[340401047,1729193225251,-526.35251762,0.00010999,2]
[340401048,1729193225272,-500.0,0.00010999,2]
[340401049,1729193225293,-54.71346523,0.00010999,2]
[340401069,1729193431962,-300.0,0.00010899,2]
[340401070,1729193431972,-308.86029484,0.000109,2]
[340401071,1729193431983,-249.56303297,0.000109,2]
[340401072,1729193431992,-159.73844961,0.000109,2]
[340401073,1729193432001,-229.37124078,0.000109,2]